Cogmind - Beta 15 @@@ ROGUE MODE // 2025.06.07 @ 23:57:13 // Winter2022/Polymind Player: Epsilon 11 Result: Destroyed by Y-45 Defender with Beam Rifle Performance ------------- Evolutions (2) 1000 Regions Visited (5) 1000 Robots Destroyed (24) 120 Value Destroyed (1150) 1150 Prototype IDs (5) 100 Alien Tech Used (0) 0 Bonus (3164) 3164 TOTAL SCORE: 6354 Bonus ------- Polymind Skill 2916 High Alert Combat Kills 48 Entered Garrisons 200 Cogmind --------- Core Integrity 0/550 Matter 0/0 Energy 9/100 System Corruption 0% Temperature Cool (9) Movement Core (50) Location -8/Materials Parts ------- > --- POWER (1) -------- (None) > --- PROPULSION (2) --- (None) > --- UTILITY (2) ------ (None) > --- WEAPON (0) ------- (None) > --- INVENTORY (0) ---- (None) Peak State ------------ > --- POWER ------------ Improved Ion Engine > --- PROPULSION ------- Light Treads Light Treads > --- UTILITY ---------- Heat Sink Heat Sink Light Armor Plating > --- WEAPON ----------- Beam Rifle Heavy Assault Rifle > --- INVENTORY -------- (None) [Rating: 11] Favorites ----------- Power Improved Ion Engine Engine Improved Ion Engine Power Core Light Nuclear Core Propulsion Light Treads Treads Light Treads Leg Aluminum Leg Wheel Wheel Hover Unit Hover Unit Flight Unit Flight Unit Utility Heat Sink Device Heat Sink Storage Small Matter Pod Processor Machine Analyzer Hackware Hacking Suite Protection Light Armor Plating Weapon Beam Rifle Energy Gun Beam Rifle Ballistic Gun Heavy Assault Rifle Special Melee Weapon Datajack Build | -11 -10 -9 -8 -8 -8 ------- Run | Yrd Mat Mat Mat Gar Mat Slots Evolved . | . . . . . . Power . | . . . . . . Propulsion . | . . . . . . Utility . | . . . . . . Weapon . | . . . . . . Parts Attached . | . . . . . . Power . | . . . . . . Engine . | . . . . . . Core . | . . . . . . Reactor . | . . . . . . Propulsion . | . . . . . . Treads . | . . . . . . Leg . | . . . . . . Wheel . | . . . . . . Hover . | . . . . . . Flight . | . . . . . . Utility . | . . . . . . Device . | . . . . . . Storage . | . . . . . . Processor . | . . . . . . Hackware . | . . . . . . Protection . | . . . . . . Artifact . | . . . . . . Weapon . | . . . . . . Energy Gun . | . . . . . . Energy Cannon . | . . . . . . Ballistic Gun . | . . . . . . Ballistic Cannon . | . . . . . . Launcher . | . . . . . . Special Weapon . | . . . . . . Impact Weapon . | . . . . . . Slashing Weapon . | . . . . . . Piercing Weapon . | . . . . . . Special Melee Weapon . | . . . . . . Unidentified Prototypes . | . . . . . . Parts Lost 18 | . 1 6 . 10 1 Power 6 | . 1 2 . 2 1 Propulsion 6 | . . 3 . 3 . Utility 2 | . . . . 2 . Weapon 4 | . . 1 . 3 . Highest Loss Streak 10 | . 1 4 . 10 1 To Critical Strikes . | . . . . . . Average Backups . | . . . . . 1 Power . | . . . . . . Propulsion . | . . . . . . Utility . | . . . . . . Weapon . | . . . . . . Tool/Special . | . . . . . . Unused Backups . | . . . . . . Power . | . . . . . . Propulsion . | . . . . . . Utility . | . . . . . . Weapon . | . . . . . . Tool/Special . | . . . . . . Average Slot Usage (%) 82 | . 70 50 83 96 98 Engine 7 | . 4 8 9 8 1 Core 3 | . . . . 6 16 Treads 11 | . . . 19 15 . Leg 6 | . . . . 12 33 Hover 1 | . . 11 . . . Flight 5 | . 44 3 . 2 . Device 15 | . . . 19 21 20 Storage 3 | . . 10 4 . . Hackware 1 | . . 8 . . . Protection 5 | . . . 9 6 . Energy Gun 8 | . . . 9 13 16 Ballistic Gun 8 | . 22 1 9 8 . Peak Build Rating 11 | . 4 7 11 11 11 Average Rating 7 | . 2 3 9 9 9 On Entrance 4 | . . 3 1 11 10 Naked Turns 34 | . 15 15 3 1 . Heaviest Build 18 | . 4 4 18 18 15 Greatest Support 46 | 3 8 20 40 40 46 Greatest Overweight (x) . | . . . . . . Average Overweight (x) . | . . . . . . Largest Inventory Capacity 12 | . . 1 1 1 12 Average Capacity . | . . . . . 2 Most Carried 12 | . . . . . 12 Average Carried . | . . . . . 2 Final Capacity 1 | . . 1 1 1 . Final Carried . | . . . . . . Class Distribution -------------------- 48% | Sentry 15% | Grunt 15% | Worker 10% | Swarmer 6% | Operator Dominant Class ---------------- Swarmer | -10/Materials Worker | -9/Materials Sentry | -8/Materials Sentry | -8/Garrison Grunt | -8/Materials Resources | -11 -10 -9 -8 -8 -8 ----------- Run | Yrd Mat Mat Mat Gar Mat Matter Collected 61 | . 1 . . 60 . Remotely . | . . . . . . Salvage Created 707 | . 73 . . 634 . Parts 41 | . 2 . . 39 . Haulers Intercepted . | . . . . . . Recyclers Shooed . | . . . . . . Parts Field Recycled . | . . . . . . Retrieved Matter . | . . . . . . Parts Self-Destructed . | . . . . . . Prevented . | . . . . . . Kills | -11 -10 -9 -8 -8 -8 ------- Run | Yrd Mat Mat Mat Gar Mat Combat Hostiles Destroyed 24 | . 2 . . 22 . Guns 24 | . 2 . . 22 . Classes Destroyed 4 | . 2 . . 2 . Swarmer 10 | . 1 . . 9 . Grunt 5 | . 1 . . 4 . Sentry 7 | . . . . 7 . Hunter 2 | . . . . 2 . Best Kill Streak 6 | . 1 . . 6 . Combat Bots Only 6 | . 1 . . 6 . Max Kills in Single Turn 1 | . 1 . . 1 . Gunslinging . | . . . . . . Exploded . | . . . . . . Melee . | . . . . . . Uniques/NPCs Destroyed . | . . . . . . Combat | -11 -10 -9 -8 -8 -8 -------- Run | Yrd Mat Mat Mat Gar Mat Hostile Shots Fired 366 | . 26 83 2 226 29 Missed 115 | . 15 37 2 56 5 Hits 251 | . 11 46 . 170 24 Projectile 251 | . 11 46 . 170 24 AOE 1 | . 1 . . . . Critical Strikes 7 | . . 1 . 6 . Damage Taken 2974 | . 282 459 . 1981 252 Core 959 | . 193 209 . 464 93 Absorbed by Shields 224 | . . . . 224 . Core Remaining (%) 56 | 100 22 47 . . . Volleys Fired 97 | . 15 . . 82 . Largest 2 | . 1 . . 2 . Hottest 79 | . 20 . . 79 . Shots Fired 136 | . 15 . . 121 . Gun 136 | . 15 . . 121 . Cannon . | . . . . . . Launcher . | . . . . . . Special . | . . . . . . Kinetic 77 | . 15 . . 62 . Thermal 59 | . . . . 59 . Explosive . | . . . . . . Electromagnetic . | . . . . . . Robot Hit Streak 13 | . 2 . . 13 . Robot Miss Streak 3 | . 2 . . 3 . Penetration Max . | . . . . . . Secondary Targets 4 | . . . . 4 . Max Gunslinging Chain 1 | . . . . 1 . Shots Hit Robots 95 | . 7 4 . 84 . Core Hits 43 | . 4 . . 39 . Critical Kills . | . . . . . . Critical Parts Destroyed 1 | . . . . 1 . Critical Strikes 4 | . . . . 4 . Burn 3 | . . . . 3 . Destroy 1 | . . . . 1 . Melee Attacks 5 | . . 5 . . . Impact . | . . . . . . Slashing . | . . . . . . Piercing . | . . . . . . Sneak Attacks 3 | . . 3 . . . Combat Hostiles . | . . . . . . Follow-up Attacks . | . . . . . . Damage Inflicted 1189 | . 54 8 . 1126 1 Guns 1180 | . 54 . . 1126 . Cannons . | . . . . . . Explosions . | . . . . . . Melee . | . . . . . . Ramming 9 | . . 8 . . 1 Kinetic 578 | . 54 . . 524 . Thermal 602 | . . . . 602 . Explosive . | . . . . . . Electromagnetic . | . . . . . . Impact . | . . . . . . Slashing . | . . . . . . Piercing . | . . . . . . Highest Corruption . | . . . . . . Average Corruption . | . . . . . . Corruption Purged . | . . . . . . Corruption Blocked . | . . . . . . Overload Shots . | . . . . . . Overflow Damage . | . . . . . . Projectiles . | . . . . . . Explosions . | . . . . . . Melee . | . . . . . . Knockbacks . | . . . . . . Impact . | . . . . . . Kinetic . | . . . . . . Secondary . | . . . . . . Self-Inflicted Damage 3 | . . 3 . . . Shots . | . . . . . . Rammed 4 | . . 3 . . 1 Targets Rammed 4 | . . 3 . . 1 Kicked . | . . . . . . Crushed . | . . . . . . Highest Temperature 147 | . 18 17 . 147 6 Average Temperature 28 | . 7 5 . 34 3 Received Heat Transfer 792 | . 12 132 . 585 63 Siege Activations . | . . . . . . Martial Activations . | . . . . . . Shielding Activations . | . . . . . . Robots Disrupted . | . . . . . . Combat Hostiles . | . . . . . . Robots Corrupted . | . . . . . . Combat Hostiles . | . . . . . . Parts Fried . | . . . . . . Impact Corruptions . | . . . . . . Robots Melted . | . . . . . . Combat Hostiles . | . . . . . . Parts Melted 3 | . . . . 3 . Heat Transferred 1665 | . . . . 1665 . Parts Sabotaged . | . . . . . . Parts Stolen . | . . . . . . Parts Stripped . | . . . . . . Power Chain Reactions . | . . . . . . Alert | -11 -10 -9 -8 -8 -8 ------- Run | Yrd Mat Mat Mat Gar Mat Maximum Alert Level 2 | . . . . 2 1 Low Security (%) 74 | 100 100 100 100 43 . Level 1 13 | . . . . 21 100 Level 2 12 | . . . . 35 . Level 3 . | . . . . . . Level 4 . | . . . . . . Level 5 . | . . . . . . High Security . | . . . . . . Max Security . | . . . . . . Peak Influence 556 | . 55 184 66 556 271 Initial 271 | . . . 66 . 271 Average 121 | . 15 59 12 262 256 Influence Increases 1096 | . 85 293 48 656 14 Destroy 0b10 Robot/C 480 | . 40 . . 440 . Destroy Leader 20 | . . . . 20 . Successful Hack 86 | . . 53 3 16 14 Anti-Garrison Action 150 | . . . . 150 . Partial Spotted 90 | . 15 30 45 . . Lose Combat Pursuer 270 | . 30 210 . 30 . Influence Decreases 871 | . 85 134 207 100 345 Entered New Map 378 | . . . 93 . 285 Time Decay 357 | . 75 123 109 . 50 Lost Part 130 | . 10 10 . 100 10 Miscellaneous 6 | . . 1 5 . . Squads Dispatched 1 | . 1 . . . . Investigation . | . . . . . . Extermination . | . . . . . . Reinforcement 1 | . 1 . . . . Assault . | . . . . . . Garrison . | . . . . . . Intercept . | . . . . . . Searches Triggered . | . . . . . . Construction Impeded . | . . . . . . Haulers Reinforced . | . . . . . . Active Scanning Responses . | . . . . . . Cargo Convoy Interrupts . | . . . . . . Stealth | -11 -10 -9 -8 -8 -8 --------- Run | Yrd Mat Mat Mat Gar Mat Distress Signals 4 | . . 2 . . 2 Communications Jammed . | . . . . . . Distress Signals . | . . . . . . Times Spotted 94 | . 15 27 2 32 18 Peak Tracking Total 13 | . 9 13 3 6 8 Tactical Retreats 5 | . 1 3 . 1 . Traps | -11 -10 -9 -8 -8 -8 ------- Run | Yrd Mat Mat Mat Gar Mat Traps Triggered 1 | . . . . 1 . Indirectly . | . . . . . . Trap Hack Attempts . | . . . . . . Triggered . | . . . . . . Disarmed . | . . . . . . Reprogrammed . | . . . . . . Reused . | . . . . . . Traps Extracted . | . . . . . . Installed . | . . . . . . Triggered . | . . . . . . Machines | -11 -10 -9 -8 -8 -8 ---------- Run | Yrd Mat Mat Mat Gar Mat Machines Disabled 2 | . . . . 2 . Max in Single Turn 1 | . . . . 1 . Garrison Relay 2 | . . . . 2 . Machines Repaired . | . . . . . . Machines Dismantled . | . . . . . . Machines Sabotaged . | . . . . . . Overloaded Fab Kills . | . . . . . . Hacking | -11 -10 -9 -8 -8 -8 --------- Run | Yrd Mat Mat Mat Gar Mat Machines Accessed 14 | . . 7 3 2 2 Terminals 13 | . . 7 2 2 2 Fabricators . | . . . . . . Repair Stations . | . . . . . . Recycling Units . | . . . . . . Scanalyzers . | . . . . . . Garrison Access 1 | . . . 1 . . Total Hacks 48 | . . 24 10 6 8 Successful 26 | . . 16 5 1 4 Failed 22 | . . 8 5 5 4 Catastrophic 1 | . . . . . 1 Database Lockouts . | . . . . . . Manual 40 | . . 22 9 1 8 Terminals 47 | . . 24 9 6 8 Fabricators . | . . . . . . Repair Stations . | . . . . . . Recycling Units . | . . . . . . Scanalyzers . | . . . . . . Garrison Access 1 | . . . 1 . . Terminal Hacks 8 | . . 6 . 1 1 Robot Analysis 2 | . . 2 . . . Prototype ID Bank 2 | . . 2 . . . Terminal Index 2 | . . 1 . . 1 Transport Status 1 | . . 1 . . . Security Stations 1 | . . . . 1 . Fabricator Hacks . | . . . . . . Repair Station Hacks . | . . . . . . Recycling Unit Hacks . | . . . . . . Scanalyzer . | . . . . . . Garrison Access Hacks 1 | . . . 1 . . Unlock Access 1 | . . . 1 . . Unauthorized Hacks 17 | . . 10 4 . 3 Terminals 17 | . . 10 4 . 3 Track 1 | . . 1 . . . Botnet 5 | . . 2 2 . 1 Disrupt 1 | . . 1 . . . Operators 1 | . . 1 . . . Skim 9 | . . 5 2 . 2 Fabricators . | . . . . . . Repair Stations . | . . . . . . Recycling Units . | . . . . . . Scanalyzers . | . . . . . . Garrison Access . | . . . . . . Data Cores Recovered . | . . . . . . Used . | . . . . . . Hacking Detections 13 | . . 7 2 2 2 Full Trace Events 1 | . . . . 1 . Feedback Events . | . . . . . . Feedback Blocked . | . . . . . . Robot Schematics Acquired . | . . . . . . Robots Built . | . . . . . . Authchips . | . . . . . . Time . | . . . . . . Total Robot Build Rating . | . . . . . . Part Schematics Acquired . | . . . . . . Parts Built . | . . . . . . Authchips . | . . . . . . Time . | . . . . . . Total Part Build Rating . | . . . . . . Parts Repaired . | . . . . . . Time . | . . . . . . Parts Recycled . | . . . . . . Recycled Matter . | . . . . . . Retrieved Matter . | . . . . . . Retrieved Components . | . . . . . . Parts Scanalyzed . | . . . . . . Part Schematics Acquired . | . . . . . . Parts Damaged . | . . . . . . Bothacking | -11 -10 -9 -8 -8 -8 ------------ Run | Yrd Mat Mat Mat Gar Mat Used RIF Installer . | . . . . . . Robots Hacked 11 | . 1 4 1 3 2 Non-combat 5 | . . 3 . . 2 Combat 6 | . 1 1 1 3 . Robot Hacks Applied 12 | . 1 4 2 3 2 parse_system 1 | . . 1 . . . no_distress 1 | . . 1 . . . locate_stockpiles 1 | . . . . . 1 find_recycling 1 | . . 1 . . . find_station 1 | . . . . . 1 find_terminals 1 | . . 1 . . . find_shortcuts 5 | . 1 . 1 3 . find_garrison 1 | . . . 1 . . Relay Couplers Released 9 | . . . . 9 . Machine Destruction 9 | . . . . 9 . Fabnet Peak Effective % . | . . . . . . Robots Rewired . | . . . . . . Allies Hacked . | . . . . . . Hacks Repelled . | . . . . . . Allies | -11 -10 -9 -8 -8 -8 -------- Run | Yrd Mat Mat Mat Gar Mat Total Allies . | . . . . . . Largest Group . | . . . . . . Highest-Rated Group . | . . . . . . Highest-Rated Ally . | . . . . . . Initial Warlord ECA Mod 2 | . . . . . 2 Total Orders . | . . . . . . Ally Attacks . | . . . . . . Total Damage . | . . . . . . Kills . | . . . . . . Allies Corrupted . | . . . . . . Allies Melted . | . . . . . . Intel | -11 -10 -9 -8 -8 -8 ------- Run | Yrd Mat Mat Mat Gar Mat Active Infowar (turns) 23 | . . . . . 23 T.N.C. 8 | . . . . . 8 Machine Analysis 15 | . . . . . 15 Robot Analysis Total 9 | . 1 4 1 1 2 Derelict Logs Recovered . | . . . . . . Drone Launches . | . . . . . . Drone Recoveries . | . . . . . . Exploration | -11 -10 -9 -8 -8 -8 ------------- Run | Yrd Mat Mat Mat Gar Mat Turns Passed 1922 | 9 170 317 648 668 110 Spaces Moved 1687 | 18 367 561 314 332 95 Core 610 | 18 29 303 257 2 1 Treads 242 | . . . 57 180 5 Legs 216 | . . . . 144 72 Wheels 43 | . . 26 . . 17 Hover 206 | . . 206 . . . Flight 370 | . 338 26 . 6 . Fastest Speed 37 | 50 37 37 50 37 50 Average Speed 73 | 50 38 53 69 139 114 Slowest Speed 160 | 50 50 80 160 160 160 Overloaded Moves . | . . . . . . Propulsion Burnouts . | . . . . . . Robots Hopped . | . . . . . . Potential Cave-ins . | . . . . . . Cave-ins Triggered . | . . . . . . Exploration Rate (%) 33 | 3 64 57 22 39 18 Regions Visited 5 Branch Regions . Pre-discovered Areas . | . . . . . . Known Exits Taken 1 | . . . 1 . . Unknown Exits Taken 3 | 1 1 1 . . . Scrap Searched . | . . . . . . Spaces Dug . | . . . . . . Terrain Destroyed . | . . . . . . Melee . | . . . . . . Projectile . | . . . . . . AOE . | . . . . . . Terrain Rammed . | . . . . . . Walls Destroyed . | . . . . . . Machines Disabled . | . . . . . . Actions | -11 -10 -9 -8 -8 -8 --------- Run | Yrd Mat Mat Mat Gar Mat Total 2231 | 17 384 573 742 419 96 Wait 438 | . 3 5 429 1 . Move 1682 | 17 366 560 313 331 95 Hop . | . . . . . . Pick Up . | . . . . . . Fast Attach . | . . . . . . Attach . | . . . . . . Detach . | . . . . . . Swap . | . . . . . . Drop . | . . . . . . Fire 97 | . 15 . . 82 . Melee 5 | . . 5 . . . Ram 4 | . . 3 . . 1 Kick . | . . . . . . Crush . | . . . . . . Escape Stasis 5 | . . . . 5 . Rewire . | . . . . . . Trap . | . . . . . . Miscellaneous . | . . . . . . Route ------- -11/Scrapyard -10/Materials -9/Materials -8/Materials -8/Garrison -8/Materials History --------- Turn | Location | Event 4 | -11/Scrapyard | Discovered new exit (range 13) 10 | -11/Scrapyard | Entered Materials 52 | -10/Materials | Core integrity fell below 50% 82 | -10/Materials | Discovered new exit (range 12) 180 | -10/Materials | Entered another Materials area 368 | -9/Materials | Core integrity fell below 50% 388 | -9/Materials | Lost 4 parts (2p2n) 463 | -9/Materials | Discovered new exit (range 6) 497 | -9/Materials | Entered another Materials area 1140 | -8/Materials | Identified exit to Garrison 1145 | -8/Materials | Entered Garrison 1167 | -8/Garrison | Triggered checkpoint 1181 | -8/Garrison | Triggered checkpoint 1206 | -8/Garrison | Learned Materials security intel 1339 | -8/Garrison | Triggered checkpoint 1395 | -8/Garrison | Triggered checkpoint 1418 | -8/Garrison | Garrison Relay disabled 1552 | -8/Garrison | Core integrity fell below 50% 1597 | -8/Garrison | Triggered checkpoint 1612 | -8/Garrison | Lost 10 parts (2p3n2u3w) 1704 | -8/Garrison | Discovered new exit (range 13) 1735 | -8/Garrison | Triggered checkpoint 1745 | -8/Garrison | Core integrity fell below 20% 1778 | -8/Garrison | Garrison Relay disabled 1813 | -8/Garrison | Entered Materials 1923 | -8/Materials | Destroyed by Y-45 Defender with Beam Rifle Last Messages --------------- Trojan loaded successfully. Testing... Terminal linked with 0 systems. Awaiting botnet instructions. 01883_ K-01 Serf collects debris. 01899_ W-25 Informer sends out distress signal. 01900_ Released control of G-47 Trooper. 01900_ Took control of A-02 Transporter. 01900_ Extracted analysis data for A-02 Transporter. 01902_ G-47 Trooper reactivates. 01908_ Released control of A-02 Transporter. 01908_ Took control of M-13 Machinist. 01908_ Extracted analysis data for M-13 Machinist. 01909_ A-02 Transporter reactivates. 01910_ Slammed into S-10 Pest. 01912_ >> Machine Analyzer network decryption results: 01912_ Repair Station x1 01912_ U-05 Engineer works on Processing Tank. 01917_ Lgt. Ion Engine destroyed. 01923_ Released control of M-13 Machinist. Map ----- +----------------------------------------------------+ | ????????????????????# #????????????????"R"?????? | | ????????????????????# #????????????????"""?????? | | ????????????????????# #????????????????????????? | | ????????????????????# #????????????????????????? | | ????????????????????# #????????????????????????? | | ????????????????????# #????????????????????????? | | ????????????????????# #????????????????????????? | | ???????###########??# ###?????????????"""??????? | | ???????# #??# # #########?????"""??????? | | ?####### #??# # """"= ?????"""??????? | | ## # #??# # """ """??????????????? | | # = #### # """ "R" ????"""??????? | | + + / " " #???"""??????? | | !! # #### g# #???"""??????? | | !! # #??# # #????????????? | | ! # #??# Y# #????????????? | | ########/##??# ##+##########????????????? | | ##? = ?# w ####################??? | | """ ## # #??? | | """ ## # ss #??? | | """ "# """ """ #"" #??? | | T# """ """ #"T #####??? | | "#? """ """ ?#"" """ ==#??? | | ##??? ???# ]! """ ]! ==#??? | | * #######+###### |m """ !! ||#??? | | @! """ ||#??? | | !! ]]#??? | | !! ]]#??? | | ############# ######### ########+###########??? | | ????????????# #???????# #?# #??????????? | | ????????????# #???????# #?# #??????????? | | ????????????# #???????# #?# #??????????? | | ????????????# #???????# #?# #??????????? | | ????????????# #???????# #?# #??????????? | | ????????????# #???????# #?# #??????????? | | ????????????# #???????# #?# #??????????? | | ????????????# #???????# #?# ! #??????????? | | ????????????# #??????? ! ?# #??????????? | | ????????????# #???????? ?########+#??????????? | | ???????????? #???????? Y ?????????????????????? | | ????????????? ????????? [?????????????????????? | | ?????????????????????????????????????????????????? | | ?????????????????????????????????????????????????? | | ?????????????????????????????????????????????????? | | ?????????????????????????????????????????????????? | | ?????????????????????????????????????????????????? | | ?????????????????????????????????????????????????? | | ?????????????????????????????????????????????????? | | ??????????????????????????T??????????????????????? | | ?????????????????????????????????????????????????? | +----------------------------------------------------+ Best States ------------- Heat Dissipation 40 Energy Generation 19 Energy Capacity 215 Matter Stores 100 Matter Capacity 100 Sight Range 16 Terrain Scan Density 10 Armor Coverage 150 Resistance: EX 50 Resistance: I 25 Evasion (%) 62 Recoil Reduction 2 Offensive Hacking 10 Item Schematics ----------------- None Robot Schematics ------------------ None Fabricated ------------ Nothing Repaired ---------- Nothing Alien Tech Used ----------------- None Achievements -------------- None Challenges ------------ None Polymind | -11 -10 -9 -8 -8 -8 ---------- Run | Yrd Mat Mat Mat Gar Mat Hosts 9 | . 1 2 1 3 2 Combat Hostiles 5 | . 1 . 1 3 . Allies . | . . . . . . Unique Host Classes 7 | . 1 2 1 1 2 Average Host Suspicion 71 | . 100 81 40 92 52 Unsuspicious Activity 758 | . . 168 590 . . Returns to Shadow 1 | . . . 1 . . Fuzzy Dispatches . | . . . . . . Protomatter Created 165 | . . . . 114 51 Used 108 | . 6 10 23 59 10 Decayed 33 | . . . . 16 17 Highest Spend 30 | . 6 5 23 30 5 Top 5 Hosts by Kills: Y-45 Defender (-8/Materials: 7) Y-45 Defender (-8/Garrison: 7) S-10 Pest (-8/Garrison: 4) G-47 Trooper (-8/Garrison: 4) S-10 Pest (-10/Materials: 2) Game ------ Seed ChargeImprovedInterrupter Manual? 0 Play Time 00:27:10 Cumulative 353.1 hours Start 2025.06.07 @ 23:32:11 End 2025.06.07 @ 23:57:13 Sessions 1 Manual Loads 0 Difficulty Rogue Special Mode Winter2022/Polymind Game No. 169 Rogue 126 Adventurer 43 Explorer 0 Win Type - Total 7 Types 4/0/1/0/0/0/0/1/0/1 Lore% 85 Gallery% 74 Achievement% 66 Wizard Run 0 Options --------- Layout 0 ASCII 0 Keyboard 0 Movement Numpad Keybinds 0 Fullscreen 1 Font 24/Smallcaps Map View 76x50 Zoom Use 0% Tactical HUD 1 Map Filters NONE Filters NONE Steam 1 RUN: 62296179-2914-4058-95ea-587bc22f0f7a